[Event "Live Chess"]
[Site "Chess.com"]
[Date "2011.01.11"]
[Round "-"]
[White "OlegBorzenkov"]
[Black "hipposcottimus"]
[Result "1-0"]
[CurrentPosition "r3r1k1/np1Q2pp/1q6/p2N1p2/2P2P2/P5P1/1P2N2P/2KR3B b - -"]
[Timezone "UTC"]
[ECO "C31"]
[ECOUrl "https://www.chess.com/openings/Kings-Gambit-Declined-Falkbeer-Accepted-Staunton-Line"]
[UTCDate "2011.01.11"]
[UTCTime "03:19:35"]
[WhiteElo "1547"]
[BlackElo "1327"]
[TimeControl "600+1"]
[Termination "OlegBorzenkov won on time"]
[StartTime "03:19:35"]
[EndDate "2011.01.11"]
[EndTime "03:33:00"]
[Link "https://www.chess.com/game/live/86330521"]

1. e4 {[%clk 0:10:00]} 1... e5 {[%clk 0:10:00]} 2. f4 {[%clk 0:09:59.2]} 2... d5 {[%clk 0:09:57.1]} 3. exd5 {[%clk 0:09:57.4]} 3... e4 {[%clk 0:09:38.4]} 4. g3 {[%clk 0:09:51.7]} 4... Nf6 {[%clk 0:09:17.9]} 5. c4 {[%clk 0:09:48.4]} 5... c6 {[%clk 0:09:03.3]} 6. dxc6 {[%clk 0:09:43.7]} 6... Nxc6 {[%clk 0:09:00.8]} 7. Nc3 {[%clk 0:09:40.5]} 7... Bc5 {[%clk 0:08:51.9]} 8. Nge2 {[%clk 0:09:27.9]} 8... Ng4 {[%clk 0:08:35.6]} 9. Bg2 {[%clk 0:08:44.3]} 9... Nf2 {[%clk 0:08:24]} 10. Qa4 {[%clk 0:08:36.7]} 10... Nxh1 {[%clk 0:07:34.1]} 11. Bxh1 {[%clk 0:08:33.5]} 11... Bd7 {[%clk 0:03:26.6]} 12. Qd1 {[%clk 0:07:22.4]} 12... f5 {[%clk 0:03:08.9]} 13. d4 {[%clk 0:07:14.8]} 13... exd3 {[%clk 0:02:28.8]} 14. Qxd3 {[%clk 0:07:13.7]} 14... O-O {[%clk 0:02:27.8]} 15. a3 {[%clk 0:07:12.1]} 15... a5 {[%clk 0:02:25.8]} 16. Be3 {[%clk 0:07:03.4]} 16... Ba7 {[%clk 0:01:19.6]} 17. O-O-O {[%clk 0:06:56.6]} 17... Re8 {[%clk 0:00:54.9]} 18. Bxa7 {[%clk 0:06:52.9]} 18... Nxa7 {[%clk 0:00:51]} 19. Qxd7 {[%clk 0:06:52]} 19... Qb6 {[%clk 0:00:41.9]} 20. Nd5 {[%clk 0:06:42.6]} 1-0

[Event "Live Chess"]
[Site "Chess.com"]
[Date "2011.01.11"]
[Round "-"]
[White "hipposcottimus"]
[Black "blindeyedtarget"]
[Result "0-1"]
[CurrentPosition "6k1/p7/2p1r2p/3nP1p1/P7/1n3qBP/Q4P1K/3R1R2 w - -"]
[Timezone "UTC"]
[ECO "C20"]
[ECOUrl "https://www.chess.com/openings/Kings-Pawn-Opening-The-Whale-Variation"]
[UTCDate "2011.01.11"]
[UTCTime "02:22:31"]
[WhiteElo "1331"]
[BlackElo "1419"]
[TimeControl "300"]
[Termination "blindeyedtarget won on time"]
[StartTime "02:22:31"]
[EndDate "2011.01.11"]
[EndTime "02:31:20"]
[Link "https://www.chess.com/game/live/86318573"]

1. e4 {[%clk 0:05:00]} 1... e5 {[%clk 0:05:00]} 2. c4 {[%clk 0:04:57]} 2... Nf6 {[%clk 0:04:58.6]} 3. d3 {[%clk 0:04:55]} 3... Nc6 {[%clk 0:04:55.6]} 4. Nf3 {[%clk 0:04:41.7]} 4... h6 {[%clk 0:04:53.1]} 5. Be3 {[%clk 0:04:38.3]} 5... d6 {[%clk 0:04:47]} 6. a3 {[%clk 0:03:46.2]} 6... Ng4 {[%clk 0:04:41.8]} 7. b4 {[%clk 0:03:41.5]} 7... f5 {[%clk 0:04:38.2]} 8. b5 {[%clk 0:03:33.1]} 8... Na5 {[%clk 0:04:34.8]} 9. d4 {[%clk 0:03:21]} 9... f4 {[%clk 0:04:30.2]} 10. Bc1 {[%clk 0:03:18.9]} 10... Bd7 {[%clk 0:04:21.5]} 11. Bb2 {[%clk 0:03:13.2]} 11... c6 {[%clk 0:04:13.2]} 12. dxe5 {[%clk 0:03:10.4]} 12... dxe5 {[%clk 0:04:09.9]} 13. a4 {[%clk 0:03:08.2]} 13... Bb4+ {[%clk 0:04:02.9]} 14. Nbd2 {[%clk 0:02:58.4]} 14... Be6 {[%clk 0:03:56.9]} 15. Be2 {[%clk 0:02:37.9]} 15... Bxc4 {[%clk 0:03:53.3]} 16. O-O {[%clk 0:02:33.3]} 16... Bxe2 {[%clk 0:03:43.2]} 17. Qxe2 {[%clk 0:02:30.1]} 17... Bxd2 {[%clk 0:03:29.4]} 18. Nxd2 {[%clk 0:02:28]} 18... Qh4 {[%clk 0:03:19.8]} 19. Nf3 {[%clk 0:02:19.1]} 19... Qh5 {[%clk 0:03:11.5]} 20. h3 {[%clk 0:01:59.4]} 20... Nf6 {[%clk 0:03:03.8]} 21. Bxe5 {[%clk 0:01:49.4]} 21... O-O {[%clk 0:02:57.1]} 22. Bxf4 {[%clk 0:01:34.5]} 22... Rae8 {[%clk 0:02:42.9]} 23. e5 {[%clk 0:01:22.5]} 23... Nd5 {[%clk 0:02:33.2]} 24. Bg3 {[%clk 0:01:15.4]} 24... Nb3 {[%clk 0:02:26.4]} 25. Rad1 {[%clk 0:00:54.3]} 25... Rxf3 {[%clk 0:02:09.4]} 26. gxf3 {[%clk 0:00:15.9]} 26... Re6 {[%clk 0:01:40.6]} 27. Kh2 {[%clk 0:00:11.4]} 27... g5 {[%clk 0:01:35]} 28. bxc6 {[%clk 0:00:05.1]} 28... bxc6 {[%clk 0:01:31.5]} 29. Qa2 {[%clk 0:00:03.6]} 29... Qxf3 {[%clk 0:01:22.3]} 0-1

[Event "Live Chess"]
[Site "Chess.com"]
[Date "2011.01.11"]
[Round "-"]
[White "playforfun1"]
[Black "hipposcottimus"]
[Result "0-1"]
[CurrentPosition "4R3/6p1/5k1p/2r3p1/3p2P1/2bR1K2/6P1/8 w - -"]
[Timezone "UTC"]
[ECO "C20"]
[ECOUrl "https://www.chess.com/openings/Kings-Pawn-Opening-Leonardis-Variation-2...Nf6-3.Nf3"]
[UTCDate "2011.01.11"]
[UTCTime "01:59:08"]
[WhiteElo "1251"]
[BlackElo "1345"]
[TimeControl "480"]
[Termination "hipposcottimus won on time"]
[StartTime "01:59:08"]
[EndDate "2011.01.11"]
[EndTime "02:12:31"]
[Link "https://www.chess.com/game/live/86312264"]

1. e4 {[%clk 0:08:00]} 1... e5 {[%clk 0:08:00]} 2. d3 {[%clk 0:07:58.3]} 2... Nf6 {[%clk 0:07:55.3]} 3. Nf3 {[%clk 0:07:57.2]} 3... d5 {[%clk 0:07:54.2]} 4. Nxe5 {[%clk 0:07:54]} 4... dxe4 {[%clk 0:07:53.1]} 5. Bg5 {[%clk 0:07:47]} 5... exd3 {[%clk 0:07:45.8]} 6. Bxd3 {[%clk 0:07:42.2]} 6... Bd6 {[%clk 0:07:37.8]} 7. Qe2 {[%clk 0:07:28.6]} 7... O-O {[%clk 0:07:32.4]} 8. O-O {[%clk 0:07:22.3]} 8... Re8 {[%clk 0:07:20]} 9. f4 {[%clk 0:06:52.2]} 9... Nc6 {[%clk 0:07:16.6]} 10. Nc3 {[%clk 0:06:44.4]} 10... Nxe5 {[%clk 0:07:08.2]} 11. fxe5 {[%clk 0:06:31.7]} 11... Bxe5 {[%clk 0:07:05.8]} 12. Ne4 {[%clk 0:06:19.3]} 12... Qd6 {[%clk 0:06:49.6]} 13. Nxd6 {[%clk 0:05:53.2]} 13... Bd4+ {[%clk 0:06:44.5]} 14. Kh1 {[%clk 0:05:46.2]} 14... Rxe2 {[%clk 0:06:38.9]} 15. Bxe2 {[%clk 0:05:41.9]} 15... cxd6 {[%clk 0:06:38.5]} 16. c3 {[%clk 0:05:28.9]} 16... Be5 {[%clk 0:06:33]} 17. Bf3 {[%clk 0:05:09.8]} 17... Ng4 {[%clk 0:06:24.3]} 18. Bxg4 {[%clk 0:04:49.4]} 18... Bxg4 {[%clk 0:06:21.3]} 19. h3 {[%clk 0:04:47.2]} 19... f6 {[%clk 0:06:18]} 20. hxg4 {[%clk 0:04:38.1]} 20... fxg5 {[%clk 0:06:16.1]} 21. Rf5 {[%clk 0:04:33.9]} 21... h6 {[%clk 0:06:08.7]} 22. Raf1 {[%clk 0:04:22.6]} 22... b6 {[%clk 0:06:00.9]} 23. Rf7 {[%clk 0:04:14.7]} 23... a6 {[%clk 0:05:50.3]} 24. a4 {[%clk 0:04:01.7]} 24... b5 {[%clk 0:05:46.2]} 25. axb5 {[%clk 0:03:43]} 25... axb5 {[%clk 0:05:44]} 26. Rb7 {[%clk 0:03:39.2]} 26... Ra5 {[%clk 0:05:29.8]} 27. b4 {[%clk 0:03:27.5]} 27... Ra4 {[%clk 0:05:06.4]} 28. Rxb5 {[%clk 0:03:23.9]} 28... Bxc3 {[%clk 0:05:03.1]} 29. Ra5 {[%clk 0:03:21.1]} 29... Rxb4 {[%clk 0:04:56.6]} 30. Ra3 {[%clk 0:03:11.6]} 30... Rc4 {[%clk 0:04:26.9]} 31. Kh2 {[%clk 0:02:55.1]} 31... d5 {[%clk 0:04:24.9]} 32. Kh3 {[%clk 0:02:35.2]} 32... d4 {[%clk 0:04:13.6]} 33. Rd1 {[%clk 0:02:23]} 33... Rc5 {[%clk 0:03:58.6]} 34. Ra8+ {[%clk 0:02:11.5]} 34... Kh7 {[%clk 0:03:51.2]} 35. Rd3 {[%clk 0:01:51.7]} 35... Kg6 {[%clk 0:03:06.4]} 36. Kg3 {[%clk 0:01:24.1]} 36... Kf6 {[%clk 0:02:42]} 37. Kf3 {[%clk 0:01:07.7]} 37... Ke5 {[%clk 0:02:30.3]} 38. Re8+ {[%clk 0:00:57.9]} 38... Kf6 {[%clk 0:01:58.5]} 0-1

[Event "Live Chess"]
[Site "Chess.com"]
[Date "2011.01.11"]
[Round "-"]
[White "bseldon"]
[Black "hipposcottimus"]
[Result "1-0"]
[CurrentPosition "r3k2r/p3bppp/R2ppn2/1B6/3N4/2P1P3/1P1P1PPP/2B1K2R b Kkq -"]
[Timezone "UTC"]
[ECO "A00"]
[ECOUrl "https://www.chess.com/openings/Ware-Opening-1...b5-2.axb5"]
[UTCDate "2011.01.11"]
[UTCTime "01:02:44"]
[WhiteElo "1350"]
[BlackElo "1339"]
[TimeControl "600"]
[Termination "bseldon won on time"]
[StartTime "01:02:44"]
[EndDate "2011.01.11"]
[EndTime "01:09:17"]
[Link "https://www.chess.com/game/live/86299719"]

1. a4 {[%clk 0:10:00]} 1... b5 {[%clk 0:10:00]} 2. axb5 {[%clk 0:09:56.6]} 2... c6 {[%clk 0:09:57.1]} 3. e3 {[%clk 0:09:49.9]} 3... Qb6 {[%clk 0:09:46.7]} 4. Nc3 {[%clk 0:09:44.4]} 4... cxb5 {[%clk 0:09:44.8]} 5. Nxb5 {[%clk 0:09:38.1]} 5... d6 {[%clk 0:09:15.7]} 6. c3 {[%clk 0:09:24.6]} 6... e6 {[%clk 0:07:51.2]} 7. Nf3 {[%clk 0:09:14]} 7... Be7 {[%clk 0:07:39.1]} 8. Qa4 {[%clk 0:08:36.9]} 8... Bd7 {[%clk 0:07:33.5]} 9. Nfd4 {[%clk 0:08:25.4]} 9... Nf6 {[%clk 0:07:24.3]} 10. Qc4 {[%clk 0:08:02.8]} 10... Na6 {[%clk 0:06:45.6]} 11. Rxa6 {[%clk 0:07:51.9]} 11... Bxb5 {[%clk 0:06:20.5]} 12. Qxb5+ {[%clk 0:07:35.5]} 12... Qxb5 {[%clk 0:06:02]} 13. Bxb5+ {[%clk 0:07:31.6]} 1-0

[Event "Live Chess"]
[Site "Chess.com"]
[Date "2011.01.11"]
[Round "-"]
[White "hipposcottimus"]
[Black "bseldon"]
[Result "0-1"]
[CurrentPosition "rnb3k1/1p1p2pp/4p3/pB1P2Q1/4P3/P1N4r/1P5q/R5RK w - -"]
[Timezone "UTC"]
[ECO "B00"]
[ECOUrl "https://www.chess.com/openings/Kings-Pawn-Opening-Ware-Defense-2.d4"]
[UTCDate "2011.01.11"]
[UTCTime "00:45:52"]
[WhiteElo "1347"]
[BlackElo "1342"]
[TimeControl "600"]
[Termination "bseldon won by checkmate"]
[StartTime "00:45:52"]
[EndDate "2011.01.11"]
[EndTime "00:56:14"]
[Link "https://www.chess.com/game/live/86297169"]

1. e4 {[%clk 0:10:00]} 1... a5 {[%clk 0:10:00]} 2. d4 {[%clk 0:09:56.6]} 2... e6 {[%clk 0:09:54.8]} 3. c4 {[%clk 0:09:53.5]} 3... c6 {[%clk 0:09:51.8]} 4. d5 {[%clk 0:09:50.6]} 4... cxd5 {[%clk 0:09:45]} 5. cxd5 {[%clk 0:09:49.8]} 5... e5 {[%clk 0:09:35.4]} 6. f4 {[%clk 0:09:46.1]} 6... Bd6 {[%clk 0:09:28]} 7. Nf3 {[%clk 0:09:42.6]} 7... Qb6 {[%clk 0:09:21.1]} 8. fxe5 {[%clk 0:09:32.2]} 8... Qb4+ {[%clk 0:09:09.6]} 9. Nc3 {[%clk 0:09:29.8]} 9... Bc5 {[%clk 0:08:51.1]} 10. a3 {[%clk 0:09:18.3]} 10... Qb6 {[%clk 0:08:42.7]} 11. Bb5 {[%clk 0:08:46.2]} 11... Bf2+ {[%clk 0:08:33.2]} 12. Ke2 {[%clk 0:08:45.2]} 12... Ne7 {[%clk 0:07:50.2]} 13. Rf1 {[%clk 0:08:12]} 13... Bc5 {[%clk 0:07:43.9]} 14. Re1 {[%clk 0:08:10.8]} 14... Ng6 {[%clk 0:07:32.9]} 15. Kf1 {[%clk 0:08:01.8]} 15... O-O {[%clk 0:07:24.2]} 16. Qe2 {[%clk 0:07:30.6]} 16... Re8 {[%clk 0:07:04.9]} 17. e6 {[%clk 0:07:07.3]} 17... fxe6 {[%clk 0:06:46.2]} 18. Be3 {[%clk 0:07:03.7]} 18... Rf8 {[%clk 0:06:15.9]} 19. Kg1 {[%clk 0:06:53]} 19... Nf4 {[%clk 0:05:52.3]} 20. Qd2 {[%clk 0:06:31.4]} 20... Nh3+ {[%clk 0:05:31]} 21. gxh3 {[%clk 0:06:22.5]} 21... Rxf3 {[%clk 0:05:26]} 22. Bxc5 {[%clk 0:06:20.5]} 22... Qxc5+ {[%clk 0:05:22.9]} 23. Kh1 {[%clk 0:06:20]} 23... Rxh3 {[%clk 0:05:12.4]} 24. Qg5 {[%clk 0:06:01.7]} 24... Qc7 {[%clk 0:04:19.9]} 25. Rg1 {[%clk 0:05:36.1]} 25... Qxh2# {[%clk 0:04:14.6]} 0-1

[Event "Live Chess"]
[Site "Chess.com"]
[Date "2011.01.10"]
[Round "-"]
[White "hipposcottimus"]
[Black "ggeant"]
[Result "0-1"]
[CurrentPosition "8/4k3/8/8/8/1r6/q7/2K5 w - -"]
[Timezone "UTC"]
[ECO "C62"]
[ECOUrl "https://www.chess.com/openings/Ruy-Lopez-Opening-Old-Steinitz-Defense-4.d4-exd4-5.Qxd4"]
[UTCDate "2011.01.10"]
[UTCTime "23:29:15"]
[WhiteElo "1355"]
[BlackElo "1329"]
[TimeControl "300+6"]
[Termination "ggeant won on time"]
[StartTime "23:29:15"]
[EndDate "2011.01.10"]
[EndTime "23:42:26"]
[Link "https://www.chess.com/game/live/86277602"]

1. e4 {[%clk 0:05:00]} 1... e5 {[%clk 0:05:00]} 2. Nf3 {[%clk 0:04:58.4]} 2... d6 {[%clk 0:05:04.4]} 3. d4 {[%clk 0:05:00.4]} 3... exd4 {[%clk 0:05:08.2]} 4. Qxd4 {[%clk 0:05:01]} 4... Nc6 {[%clk 0:05:04.6]} 5. Bb5 {[%clk 0:05:05.1]} 5... Bd7 {[%clk 0:05:06.5]} 6. Bxc6 {[%clk 0:05:09.9]} 6... Bxc6 {[%clk 0:05:10.2]} 7. c4 {[%clk 0:05:15.4]} 7... Qf6 {[%clk 0:05:04]} 8. e5 {[%clk 0:05:09.2]} 8... dxe5 {[%clk 0:05:02.6]} 9. Qc3 {[%clk 0:03:53.5]} 9... O-O-O {[%clk 0:04:53.2]} 10. O-O {[%clk 0:03:49.7]} 10... Bxf3 {[%clk 0:04:54.6]} 11. Qxf3 {[%clk 0:03:50.9]} 11... Qxf3 {[%clk 0:04:58.5]} 12. gxf3 {[%clk 0:03:54.1]} 12... f6 {[%clk 0:04:51]} 13. a3 {[%clk 0:03:54.2]} 13... Ne7 {[%clk 0:04:49.8]} 14. b4 {[%clk 0:03:55.4]} 14... Nc6 {[%clk 0:04:53.9]} 15. Bb2 {[%clk 0:03:25.6]} 15... Nd4 {[%clk 0:04:45.7]} 16. Bxd4 {[%clk 0:03:20.5]} 16... Rxd4 {[%clk 0:04:48.5]} 17. c5 {[%clk 0:03:07.1]} 17... c6 {[%clk 0:04:52.2]} 18. Nc3 {[%clk 0:03:08.2]} 18... Rd3 {[%clk 0:04:51]} 19. Rfc1 {[%clk 0:02:53.8]} 19... Rxf3 {[%clk 0:04:54]} 20. b5 {[%clk 0:02:57.8]} 20... cxb5 {[%clk 0:04:52.2]} 21. Nxb5 {[%clk 0:03:01]} 21... a6 {[%clk 0:04:52.8]} 22. Nd6+ {[%clk 0:02:45.9]} 22... Bxd6 {[%clk 0:04:56]} 23. cxd6+ {[%clk 0:02:50.5]} 23... Kd7 {[%clk 0:05:00.1]} 24. Rd1 {[%clk 0:02:55.6]} 24... Rc3 {[%clk 0:04:56.7]} 25. Rd2 {[%clk 0:02:45.1]} 25... Rb8 {[%clk 0:04:49.5]} 26. a4 {[%clk 0:02:47.2]} 26... Rc6 {[%clk 0:04:46.2]} 27. Rad1 {[%clk 0:02:48.9]} 27... Rbc8 {[%clk 0:04:41.9]} 28. Rd3 {[%clk 0:02:47.8]} 28... Rc1 {[%clk 0:04:43.6]} 29. Kg2 {[%clk 0:02:44.7]} 29... Rxd1 {[%clk 0:04:36.2]} 30. Rxd1 {[%clk 0:02:47.2]} 30... Rc4 {[%clk 0:04:39.9]} 31. a5 {[%clk 0:02:45.7]} 31... Rc5 {[%clk 0:04:42.6]} 32. Rb1 {[%clk 0:02:46.9]} 32... Rb5 {[%clk 0:04:43.2]} 33. Rc1 {[%clk 0:02:45.8]} 33... Kxd6 {[%clk 0:04:36.9]} 34. f3 {[%clk 0:02:48]} 34... Rxa5 {[%clk 0:04:37.8]} 35. Kg3 {[%clk 0:02:51.3]} 35... Rc5 {[%clk 0:04:40.5]} 36. h4 {[%clk 0:02:45.3]} 36... b6 {[%clk 0:04:36.3]} 37. Rd1+ {[%clk 0:02:39]} 37... Kc7 {[%clk 0:04:37.2]} 38. Re1 {[%clk 0:02:38.3]} 38... b5 {[%clk 0:04:39]} 39. f4 {[%clk 0:02:41.1]} 39... a5 {[%clk 0:04:39.2]} 40. fxe5 {[%clk 0:02:44]} 40... Rxe5 {[%clk 0:04:42.4]} 41. Rc1+ {[%clk 0:02:47.3]} 41... Kd6 {[%clk 0:04:44]} 42. Kf4 {[%clk 0:02:40.4]} 42... b4 {[%clk 0:04:44.6]} 43. Rc8 {[%clk 0:02:43.8]} 43... Rb5 {[%clk 0:04:41.4]} 44. Rh8 {[%clk 0:02:41.1]} 44... h6 {[%clk 0:04:42.4]} 45. Rg8 {[%clk 0:02:42.8]} 45... b3 {[%clk 0:04:47.5]} 46. Rxg7 {[%clk 0:02:47.1]} 46... b2 {[%clk 0:04:52.5]} 47. Rg6 {[%clk 0:02:52.1]} 47... b1=Q {[%clk 0:04:55.4]} 48. Rxh6 {[%clk 0:02:57.5]} 48... Qb4+ {[%clk 0:04:53.8]} 49. Kg3 {[%clk 0:02:57.1]} 49... a4 {[%clk 0:04:58.2]} 50. Rxf6+ {[%clk 0:03:01.2]} 50... Ke7 {[%clk 0:05:02]} 51. Rf4 {[%clk 0:03:06.8]} 51... Qc3+ {[%clk 0:05:04.1]} 52. Rf3 {[%clk 0:03:10.7]} 52... Qxf3+ {[%clk 0:05:07.5]} 53. Kxf3 {[%clk 0:03:15.7]} 53... a3 {[%clk 0:05:12.5]} 54. h5 {[%clk 0:03:21.5]} 54... Rxh5 {[%clk 0:05:17.2]} 55. Kg4 {[%clk 0:03:25.9]} 55... Rc5 {[%clk 0:05:21.6]} 56. Kf4 {[%clk 0:03:29.1]} 56... a2 {[%clk 0:05:26.4]} 57. Ke3 {[%clk 0:03:34.2]} 57... a1=Q {[%clk 0:05:29.7]} 58. Ke4 {[%clk 0:03:39.8]} 58... Qa4+ {[%clk 0:05:33.6]} 59. Kd3 {[%clk 0:03:43.5]} 59... Rb5 {[%clk 0:05:38.3]} 60. Kd2 {[%clk 0:03:45.4]} 60... Rb3 {[%clk 0:05:42.5]} 61. Kc1 {[%clk 0:03:44.9]} 61... Qa2 {[%clk 0:05:47]} 0-1

[Event "Live Chess"]
[Site "Chess.com"]
[Date "2011.01.10"]
[Round "-"]
[White "ggeant"]
[Black "hipposcottimus"]
[Result "1-0"]
[CurrentPosition "1k3r2/pppQ2p1/3N4/7p/8/4B3/Pq2rPPP/R4R1K b - -"]
[Timezone "UTC"]
[ECO "C50"]
[ECOUrl "https://www.chess.com/openings/Italian-Game"]
[UTCDate "2011.01.10"]
[UTCTime "23:11:56"]
[WhiteElo "1320"]
[BlackElo "1364"]
[TimeControl "300+6"]
[Termination "ggeant won on time"]
[StartTime "23:11:56"]
[EndDate "2011.01.10"]
[EndTime "23:24:49"]
[Link "https://www.chess.com/game/live/86274028"]

1. e4 {[%clk 0:05:00]} 1... e5 {[%clk 0:05:00]} 2. Bc4 {[%clk 0:05:05]} 2... Nc6 {[%clk 0:05:03.4]} 3. Nf3 {[%clk 0:05:10]} 3... Nf6 {[%clk 0:05:03.7]} 4. d3 {[%clk 0:05:12.3]} 4... d5 {[%clk 0:05:08]} 5. exd5 {[%clk 0:04:42.1]} 5... e4 {[%clk 0:05:10.5]} 6. dxe4 {[%clk 0:04:20.2]} 6... Nxe4 {[%clk 0:05:14]} 7. Qe2 {[%clk 0:04:06.4]} 7... Ne7 {[%clk 0:04:23.7]} 8. Qxe4 {[%clk 0:04:02.3]} 8... Bf5 {[%clk 0:04:28.1]} 9. Qe2 {[%clk 0:04:01.1]} 9... Qd6 {[%clk 0:04:29.2]} 10. O-O {[%clk 0:04:02.6]} 10... O-O-O {[%clk 0:04:33.6]} 11. Ng5 {[%clk 0:04:00]} 11... Qg6 {[%clk 0:04:24.8]} 12. Bd3 {[%clk 0:03:36.8]} 12... Rxd5 {[%clk 0:04:12.8]} 13. Bxf5+ {[%clk 0:03:32.2]} 13... Nxf5 {[%clk 0:03:40.6]} 14. Nc3 {[%clk 0:03:27.6]} 14... Nd4 {[%clk 0:03:40.1]} 15. Qe8+ {[%clk 0:03:08]} 15... Rd8 {[%clk 0:03:38]} 16. Qxf7 {[%clk 0:03:08.9]} 16... Qxc2 {[%clk 0:03:31.1]} 17. Qc4 {[%clk 0:02:39.4]} 17... Ne2+ {[%clk 0:02:54.6]} 18. Kh1 {[%clk 0:02:38.8]} 18... Re8 {[%clk 0:01:50]} 19. Qg4+ {[%clk 0:02:11.9]} 19... Kb8 {[%clk 0:01:33.2]} 20. Nxe2 {[%clk 0:02:12.5]} 20... Rxe2 {[%clk 0:01:32.5]} 21. Be3 {[%clk 0:01:59.5]} 21... h5 {[%clk 0:01:14.7]} 22. Qe6 {[%clk 0:01:48.9]} 22... Bd6 {[%clk 0:01:04.9]} 23. Qd7 {[%clk 0:01:41.9]} 23... Qxb2 {[%clk 0:00:51.7]} 24. Nf7 {[%clk 0:01:43.8]} 24... Rf8 {[%clk 0:00:27]} 25. Nxd6 {[%clk 0:01:46.3]} 1-0

[Event "Live Chess"]
[Site "Chess.com"]
[Date "2011.01.10"]
[Round "-"]
[White "hipposcottimus"]
[Black "spicmick"]
[Result "0-1"]
[CurrentPosition "8/4k3/p2p4/K2Rp3/P1r2p2/8/1r6/8 w - -"]
[Timezone "UTC"]
[ECO "B02"]
[ECOUrl "https://www.chess.com/openings/Alekhines-Defense-Mokele-Mbembe-Variation"]
[UTCDate "2011.01.10"]
[UTCTime "22:43:17"]
[WhiteElo "1373"]
[BlackElo "1421"]
[TimeControl "240+10"]
[Termination "spicmick won on time"]
[StartTime "22:43:17"]
[EndDate "2011.01.10"]
[EndTime "23:01:12"]
[Link "https://www.chess.com/game/live/86265844"]

1. e4 {[%clk 0:04:00]} 1... Nf6 {[%clk 0:04:00]} 2. e5 {[%clk 0:04:08.8]} 2... Ne4 {[%clk 0:04:08.1]} 3. f3 {[%clk 0:04:14.2]} 3... e6 {[%clk 0:04:15]} 4. fxe4 {[%clk 0:04:23]} 4... Qh4+ {[%clk 0:04:18.7]} 5. g3 {[%clk 0:04:21.2]} 5... Qxe4+ {[%clk 0:04:18.8]} 6. Qe2 {[%clk 0:04:21.2]} 6... Qxh1 {[%clk 0:04:20.8]} 7. Nf3 {[%clk 0:04:29.2]} 7... b6 {[%clk 0:04:20.6]} 8. d4 {[%clk 0:04:19.8]} 8... Bb7 {[%clk 0:04:24]} 9. Nbd2 {[%clk 0:04:28.4]} 9... Nc6 {[%clk 0:03:54.9]} 10. Kf2 {[%clk 0:04:36.8]} 10... Nxd4 {[%clk 0:03:34.6]} 11. Bg2 {[%clk 0:04:28.8]} 11... Nxe2 {[%clk 0:03:34.9]} 12. Bxh1 {[%clk 0:04:31.6]} 12... Bxf3 {[%clk 0:03:39.9]} 13. Bxf3 {[%clk 0:04:37.9]} 13... Bc5+ {[%clk 0:03:37.9]} 14. Kxe2 {[%clk 0:04:43.8]} 14... O-O-O {[%clk 0:03:46.5]} 15. Ne4 {[%clk 0:04:40.8]} 15... Be7 {[%clk 0:03:46]} 16. Bg5 {[%clk 0:04:36.3]} 16... Bxg5 {[%clk 0:03:42.7]} 17. Nxg5 {[%clk 0:04:44.1]} 17... Rdf8 {[%clk 0:03:52]} 18. Kd2 {[%clk 0:04:46.5]} 18... h6 {[%clk 0:03:45.8]} 19. Ne4 {[%clk 0:04:50]} 19... f5 {[%clk 0:03:47.5]} 20. exf6 {[%clk 0:04:55]} 20... gxf6 {[%clk 0:03:53.8]} 21. c4 {[%clk 0:05:00]} 21... f5 {[%clk 0:03:59.9]} 22. Nc3 {[%clk 0:05:08.8]} 22... h5 {[%clk 0:04:06.8]} 23. Rd1 {[%clk 0:05:12]} 23... h4 {[%clk 0:04:13.2]} 24. Kc1 {[%clk 0:05:20.2]} 24... hxg3 {[%clk 0:04:21.1]} 25. hxg3 {[%clk 0:05:26.9]} 25... e5 {[%clk 0:04:10]} 26. Be2 {[%clk 0:04:51.4]} 26... Rh2 {[%clk 0:04:04.1]} 27. Rd5 {[%clk 0:04:51.7]} 27... d6 {[%clk 0:03:48.1]} 28. b4 {[%clk 0:04:47.3]} 28... Rg2 {[%clk 0:03:45.4]} 29. c5 {[%clk 0:04:23.2]} 29... Rxg3 {[%clk 0:03:30.6]} 30. Kb2 {[%clk 0:04:26.3]} 30... bxc5 {[%clk 0:03:28.1]} 31. bxc5 {[%clk 0:04:32.5]} 31... Kd7 {[%clk 0:03:26.9]} 32. Bb5+ {[%clk 0:04:36]} 32... Ke7 {[%clk 0:03:33.4]} 33. cxd6+ {[%clk 0:04:38]} 33... cxd6 {[%clk 0:03:40]} 34. Bc4 {[%clk 0:04:29.6]} 34... Rb8+ {[%clk 0:03:46.1]} 35. Bb3 {[%clk 0:04:29.6]} 35... Rg2+ {[%clk 0:03:47.3]} 36. Ka3 {[%clk 0:04:34.7]} 36... f4 {[%clk 0:03:43.6]} 37. Nb5 {[%clk 0:04:29]} 37... Rb6 {[%clk 0:03:27.9]} 38. Bc4 {[%clk 0:03:40.1]} 38... a6 {[%clk 0:02:51.8]} 39. Nc7 {[%clk 0:03:28.6]} 39... Rc6 {[%clk 0:02:45.4]} 40. Kb4 {[%clk 0:01:25.7]} 40... Rxc7 {[%clk 0:02:51.5]} 41. a4 {[%clk 0:01:33.3]} 41... Rb2+ {[%clk 0:02:42.8]} 42. Ka5 {[%clk 0:01:37.5]} 42... Rxc4 {[%clk 0:02:49.1]} 0-1